bitfinex-derivatives/quotes_SOLF0:USTF0_20241215
["timestamp","ask_amount","ask_price","bid_price","bid_amount"]
[1734238446875,7.72888748,220.17,220.05,8.7557]
[1734238447180,7.72888748,220.17,220.09,7.72888748]
[1734238448278,7.72888748,220.17,220.11,5.42598157]
[1734238448683,7.72888748,220.17,220.11,7.69808157]
[1734238450985,7.72888748,220.17,220.12,2.272]
[1734238457384,7.72888748,220.15,220.09,5.38725184]
[1734238457592,10.00058748,220.15,220.09,2.2723]
[1734238457999,10.00058748,220.15,220.06,7.72888748]
[1734238458898,7.72888748,220.15,220.07,2.2724]
[1734238459192,2.2718,220.14,220.07,2.2724]
[1734238459394,2.24,220.13,220.07,2.2724]
[1734238460096,2.2721,220.12,220.04,2.44363]
[1734238460396,9.96888748,220.13,220.04,10.17251748]
[1734238461088,7.72888748,220.11,220.05,5.37955849]
[1734238461692,10.00098748,220.11,220.05,5.37955849]
[1734238465404,2.2721,220.11,220.05,5.37955849]
[1734238465704,7.72888748,220.09,220.05,5.37955849]
[1734238465902,2.24,220.08,220.04,0.17083]
[1734238469306,2.24,220.08,220.03,2.2729]
[1734238470307,2.24,220.08,220.04,15.3751309]
[1734238470708,2.24,220.08,220.04,13.1023309]
[1734238471512,2.24,220.09,220.04,13.1023309]
[1734238472008,2.24,220.1,220.06,2.2726]
[1734238476115,2.24,220.1,220.07,2.2725]
[1734238478813,2.24,220.1,220.04,5.37344342]
[1734238479018,2.24,220.1,220.05,2.2726]
[1734238481720,7.72888748,220.09,220.04,5.37344342]
[1734238482615,10.00118748,220.09,220.04,5.37344342]
[1734238482816,10.00118748,220.09,220.03,2.2728]
[1734238483011,10.00118748,220.09,219.96,9.10217]
[1734238483012,7.72888748,220.05,219.96,0.29147]
[1734238483222,7.72888748,219.99,219.96,0.29147]
[1734238484117,7.72888748,219.99,219.97,2.2735]
[1734238486019,7.72888748,219.99,219.98,5.48952476]
[1734238487913,7.72888748,219.99,219.97,2.2735]
[1734238489122,7.72888748,219.99,219.96,0.29147]
[1734238489319,2.24,220.0,219.96,0.29147]
[1734238489521,2.24,220.0,219.97,7.72888748]
[1734238489921,2.24,220.0,219.97,13.27161391]
[1734238490626,2.24,220.0,219.98,2.2734]
[1734238493320,2.24,220.0,219.97,13.27161391]
[1734238493321,7.72888748,220.04,219.97,13.27161391]
[1734238493521,2.24,220.05,220.01,7.72888748]
[1734238494526,2.24,220.07,220.02,2.273]
[1734238494727,2.24,220.07,220.01,7.72888748]
[1734238495226,2.24,220.07,220.03,2.2728]
[1734238496626,2.24,220.07,220.01,7.72888748]
[1734238496826,2.24,220.07,220.04,2.2728]
[1734238497428,2.24,220.08,220.05,2.2727]
[1734238497923,9.96888748,220.08,220.05,2.2727]
[1734238502028,9.96888748,220.08,219.98,5.809]
[1734238502029,2.24,220.08,220.06,2.2726]
[1734238504629,9.96888748,220.09,220.06,2.2726]
[1734238509341,9.96888748,220.09,220.01,10.00198748]
[1734238509634,9.96888748,220.09,220.01,7.72888748]
[1734238510636,9.96888748,220.09,220.04,2.2728]
[1734238512638,2.24,220.09,220.05,2.2727]
[1734238513939,9.92097948,220.09,220.05,2.2727]
[1734238519842,9.92097948,220.09,219.98,5.809]
[1734238520038,7.68097948,220.07,219.98,5.809]
[1734238520235,7.68097948,220.05,219.98,5.809]
[1734238520435,2.24,220.04,219.98,5.809]
[1734238520640,2.24,220.04,220.0,2.2732]
[1734238525148,2.24,220.04,219.98,8.0824]
[1734238525339,4.5128,220.04,219.98,5.1847]
[1734238525735,4.5128,220.04,219.98,2.2734]
[1734238525940,7.68097948,220.03,219.98,2.2734]
[1734238533745,2.2727,220.06,219.98,2.2734]
[1734238533746,2.24,220.02,219.98,2.2734]
[1734238537649,2.24,220.02,219.99,2.2733]
[1734238538053,2.24,220.02,219.98,2.2735]
[1734238538248,2.24,220.02,219.97,5.54272643]
[1734238538249,2.24,220.02,219.92,0.31829]
[1734238538451,2.24,220.02,219.95,7.68097948]
[1734238539048,2.24,220.02,219.92,0.31829]
[1734238539253,2.24,220.02,219.96,2.2737]
[1734238539557,2.24,220.02,219.96,5.48734439]
[1734238540746,2.24,220.02,219.97,2.2735]
[1734238544058,9.92097948,220.02,219.97,2.2735]
[1734238544363,7.68097948,220.0,219.96,7.76104439]
[1734238545362,2.24,220.02,219.96,7.76104439]
[1734238545564,9.92097948,220.02,219.96,7.76104439]
[1734238545863,9.92097948,220.02,219.97,2.2736]
[1734238546454,7.68097948,220.02,219.97,2.2736]
[1734238546657,2.24,220.01,219.97,2.2736]
[1734238548959,2.24,220.0,219.97,2.2736]
[1734238549156,2.24,219.99,219.97,2.2736]
[1734238549362,2.24,220.0,219.97,2.2736]
[1734238551763,2.24,220.0,219.98,2.2734]
[1734238551970,2.24,220.0,219.96,5.48734439]
[1734238553167,2.2725,220.08,219.99,7.68097948]
[1734238553471,7.68097948,220.06,219.99,7.68097948]
[1734238553772,2.24,220.05,219.99,7.68097948]
[1734238554364,2.24,220.05,219.96,5.48734439]
[1734238554570,2.24,220.05,219.99,7.68097948]
[1734238554870,2.24,220.05,219.98,9.95437948]
[1734238555070,2.24,220.05,219.98,7.68097948]
[1734238555467,7.68097948,220.04,219.97,7.68097948]
[1734238556266,7.68097948,220.04,219.97,9.95447948]
[1734238556566,7.68097948,220.04,219.97,7.68097948]
[1734238557770,7.68097948,220.04,219.98,2.2734]
[1734238558171,7.68097948,220.03,219.98,2.2734]
[1734238558373,7.68598594,220.04,219.98,2.2734]
[1734238560475,7.68598594,220.04,219.99,2.2733]
[1734238562175,7.68598594,220.04,219.96,13.17333033]
[1734238562483,2.24,220.03,219.98,7.68598594]
[1734238563076,2.24,220.03,220.01,2.273]
[1734238566282,7.68464707,220.06,220.01,2.273]
[1734238566482,2.24,220.03,220.01,2.273]
[1734238577389,2.24,220.03,219.98,13.17501685]
[1734238577593,7.68464707,220.06,219.98,13.17501685]
[1734238577887,2.22,220.05,219.98,13.17501685]
[1734238578294,2.22,220.04,219.98,13.17501685]
[1734238578794,2.22,220.04,220.01,2.2731]
[1734238579795,2.22,220.04,219.98,13.17501685]
[1734238579989,2.22,220.04,220.02,2.273]
[1734238582692,8.9474,220.16,220.0,7.68464707]
[1734238582892,7.68464707,220.08,219.98,5.49036978]
[1734238583096,7.68464707,220.06,219.98,13.17501685]
[1734238583298,2.22,220.05,219.98,13.17501685]
[1734238584698,9.90464707,220.05,219.98,5.49036978]
[1734238584894,9.90464707,220.05,219.98,13.17501685]
[1734238585101,9.90464707,220.05,219.98,5.49036978]
[1734238585291,9.95734707,220.05,219.99,2.2733]
[1734238585493,1.0,220.15,220.03,7.68464707]
[1734238585696,2.22,220.21,220.14,7.68464707]
[1734238585901,7.68464707,220.23,220.16,7.68464707]
[1734238586090,2.22,220.22,220.16,7.68464707]
[1734238586293,7.68464707,220.23,220.16,7.68464707]
[1734238586495,2.22,220.22,220.16,7.68464707]
[1734238587093,7.68464707,220.23,220.16,7.68464707]
[1734238587299,7.68464707,220.25,220.18,7.68464707]
[1734238587499,2.22,220.24,220.18,7.68464707]
[1734238588704,2.22,220.24,220.19,2.2713]
[1734238589003,2.22,220.24,220.18,7.68464707]
[1734238590398,2.22,220.24,220.19,2.2712]
[1734238591300,2.22,220.24,220.2,7.68464707]
[1734238593303,2.22,220.24,220.2,9.95584707]
[1734238595099,2.22,220.25,220.2,9.95584707]
[1734238597007,2.22,220.25,220.21,2.2711]
[1734238597309,9.90464707,220.34,220.24,7.68464707]
[1734238597604,2.22,220.33,220.28,7.68464707]
[1734238598905,7.68464707,220.3,220.21,8.7422]
[1734238599101,2.2705,220.27,220.22,7.68464707]
[1734238599300,4.4905,220.27,220.22,7.68464707]
[1734238600608,2.22,220.27,220.24,7.68464707]
[1734238601609,2.22,220.27,220.24,9.95534707]
[1734238603716,7.68464707,220.31,220.24,9.95534707]
[1734238603916,2.2702,220.3,220.24,9.95534707]
[1734238605717,2.2702,220.3,220.24,7.68464707]
[1734238605917,2.2702,220.3,220.25,2.2707]
[1734238607208,2.2702,220.3,220.26,7.68464707]
[1734238614218,2.2703,220.29,220.26,7.68464707]
[1734238617525,7.68464707,220.29,220.14,8.5467]
[1734238617716,2.22,220.31,220.2,7.68464707]
[1734238617717,7.68464707,220.27,220.2,7.68464707]
[1734238617922,7.68464707,220.29,220.22,7.68464707]
[1734238618421,9.90464707,220.31,220.22,7.68464707]
[1734238619724,2.2704,220.28,220.22,9.95554707]
[1734238621817,9.90464707,220.31,220.22,7.68464707]
[1734238621818,2.2706,220.26,220.22,7.68464707]
[1734238622024,7.68464707,220.29,220.21,7.68464707]
[1734238622425,2.2706,220.26,220.21,7.68464707]
[1734238623627,9.90464707,220.25,220.14,8.5467]
[1734238623827,7.68464707,220.23,220.14,8.5467]
[1734238624022,2.22,220.22,220.14,2.8266]
[1734238624224,2.22,220.22,220.15,7.68464707]
[1734238624729,2.2712,220.21,220.14,2.8266]
[1734238624930,2.2712,220.21,220.19,7.68464707]
[1734238628039,2.22,220.22,220.19,7.68464707]
[1734238630134,4.491,220.22,220.17,9.95614707]
[1734238632648,2.22,220.22,220.18,2.2714]
[1734238636746,4.491,220.22,220.17,7.68464707]
[1734238638055,2.22,220.22,220.21,7.68464707]
[1734238639961,2.22,220.26,220.21,7.68464707]
[1734238640149,4.4905,220.27,220.23,7.68464707]
[1734238644153,2.2705,220.27,220.23,7.68464707]
[1734238644355,4.4905,220.27,220.23,7.68464707]
[1734238648551,2.2706,220.26,220.23,7.68464707]
[1734238648756,2.2706,220.26,220.21,7.68464707]
[1734238649558,2.2706,220.26,220.21,9.95564707]
[1734238653361,2.22,220.27,220.21,9.95564707]
[1734238653362,4.4905,220.27,220.21,9.95564707]
[1734238655061,2.22,220.27,220.22,7.68464707]
[1734238656660,2.22,220.27,220.22,9.95554707]
[1734238657162,2.22,220.27,220.22,7.68464707]
[1734238657557,2.22,220.27,220.24,7.68464707]
[1734238657762,2.22,220.31,220.27,2.2704]
[1734238658063,2.22,220.31,220.28,7.68464707]
[1734238659363,1.0,220.33,220.28,7.68464707]
[1734238659667,9.05083068,220.33,220.3,7.68464707]
[1734238659964,3.22,220.33,220.3,7.68464707]
[1734238660666,3.22,220.33,220.3,9.95474707]
[1734238660862,3.22,220.33,220.3,7.68464707]
[1734238661064,5.4898,220.33,220.28,7.68464707]
[1734238662468,5.4898,220.33,220.28,9.95494707]
[1734238662469,3.22,220.33,220.28,9.95494707]
[1734238664670,5.4898,220.33,220.28,2.2703]
[1734238670070,3.22,220.33,220.29,7.68464707]
[1734238670369,3.22,220.33,220.29,9.95494707]
[1734238672475,2.2701,220.31,220.26,7.68464707]
[1734238672769,3.22,220.33,220.22,8.8953]
[1734238672770,7.68464707,220.3,220.22,8.8953]
[1734238672975,7.68464707,220.3,220.22,16.57994707]
[1734238673175,2.2704,220.28,220.22,18.85094707]
[1734238673375,2.22,220.27,220.22,18.85094707]
[1734238673771,2.22,220.27,220.22,12.95204707]
[1734238675868,7.68464707,220.26,220.16,5.9825]
[1734238676072,2.22,220.27,220.16,7.68464707]
[1734238676073,7.68464707,220.24,220.16,7.68464707]
[1734238676270,7.68464707,220.22,220.14,7.68464707]
[1734238676478,7.68464707,220.19,220.08,2.9653]
[1734238676673,2.22,220.18,220.12,7.68464707]
[1734238676875,4.4914,220.18,220.12,7.68464707]
[1734238677275,4.4914,220.18,220.14,7.68464707]
[1734238678278,2.2716,220.17,220.13,7.68464707]
[1734238684782,5.9103,220.25,220.12,5.57271818]
[1734238684783,41.55932339,220.35,220.3,193.0]
[1734238684974,5.54729105,220.55,220.34,7.68464707]
[1734238685173,5.54729105,220.55,220.54,7.68464707]
[1734238685174,7.81489105,220.55,220.54,7.68464707]
[1734238685378,7.81489105,220.55,220.29,3.16]
[1734238685379,5.54729105,220.55,220.29,3.16]
[1734238685773,3.16,220.54,220.53,7.68464707]
[1734238686075,8.02612072,220.59,220.53,7.68464707]
[1734238686273,13.64,220.79,220.4,5.61501481]
[1734238686274,2.2663,220.68,220.55,2.2675]
[1734238686476,3.36,220.65,220.58,7.68464707]
[1734238686672,2.8403,220.75,220.62,7.68464707]
[1734238686878,2.2661,220.7,220.63,13.35969154]
[1734238687077,3.36,220.65,220.64,5.67504447]
[1734238687379,2.2661,220.7,220.64,5.67504447]
[1734238687576,51.98,220.73,220.6,11.93657166]
[1734238687577,3.36,220.65,220.6,11.93657166]
[1734238687782,2.2659,220.72,220.61,17.01095581]
[1734238687976,8.85141507,220.71,220.66,5.57270982]
[1734238688278,51.98,220.73,220.67,26.08346557]
[1734238688279,2.2662,220.69,220.67,26.08346557]
[1734238688583,2.2662,220.69,220.62,5.57270982]
[1734238688584,11.93657166,220.69,220.62,5.57270982]
[1734238688780,2.267,220.62,220.58,5.46746362]
[1734238688980,2.267,220.62,220.33,11.93657166]
[1734238688981,15.29657166,220.61,220.46,11.93657166]
[1734238689279,15.29657166,220.61,220.43,11.93657166]
[1734238689280,11.93657166,220.58,220.43,11.93657166]
[1734238689980,11.93657166,220.58,220.4,11.93657166]
[1734238690381,14.20417166,220.55,220.4,11.93657166]
[1734238690683,3.36,220.54,220.4,11.93657166]
[1734238690877,3.36,220.54,220.48,5.31272057]
[1734238691278,3.36,220.54,220.4,11.93657166]
[1734238691478,11.93657166,220.52,220.37,14.73397166]
[1734238691680,11.93657166,220.52,220.42,5.47123607]
[1734238691979,11.93657166,220.52,220.37,14.73397166]
[1734238691980,11.93657166,220.49,220.37,2.7974]
[1734238692175,11.93657166,220.46,220.36,5.51971676]
[1734238692380,3.36,220.45,220.31,14.93437166]
[1734238692581,2.2691,220.41,220.31,14.93437166]
[1734238692782,3.36,220.45,220.31,11.93657166]
[1734238693585,2.2692,220.4,220.32,5.5327902]
[1734238693786,3.36,220.39,220.32,5.5327902]
[1734238696678,3.36,220.39,220.29,2.7974]
[1734238697485,5.6293,220.39,220.3,5.49572259]
[1734238699283,19.14473268,220.46,220.3,5.49572259]
[1734238699485,2.269,220.41,220.31,2.27]
[1734238701187,2.2694,220.38,220.3,5.49572259]
[1734238701391,3.36,220.37,220.3,5.49572259]
[1734238702890,3.36,220.36,220.3,5.49572259]
[1734238704092,3.36,220.35,220.3,5.49572259]
[1734238706494,3.36,220.35,220.11,4.548]
[1734238706701,3.36,220.35,220.18,22.03923268]
[1734238707597,3.36,220.35,220.21,2.271]
[1734238707598,2.2703,220.29,220.21,2.271]
[1734238707799,3.36,220.28,220.21,2.271]
[1734238707993,3.36,220.28,220.18,22.03923268]
[1734238708590,2.2705,220.27,220.19,2.2712]
[1734238709996,3.36,220.26,220.23,5.56587547]
[1734238710595,3.36,220.26,220.23,7.83667547]
[1734238715400,3.36,220.29,220.23,5.56587547]
[1734238715603,2.89,220.37,220.23,5.56587547]
[1734238715604,3.18,220.31,220.23,5.56587547]
[1734238715904,3.18,220.32,220.23,5.56587547]
[1734238717096,3.18,220.32,220.22,19.14473268]
[1734238717295,3.18,220.32,220.25,11.97407761]
[1734238717694,3.18,220.32,220.27,2.2704]
[1734238720810,5.45,220.32,220.25,19.62334585]
[1734238721012,5.45,220.32,220.25,7.64926824]
[1734238721405,3.18,220.32,220.21,11.97407761]
[1734238721704,2.2702,220.3,220.23,2.2708]
[1734238722313,2.2702,220.3,220.21,11.97407761]
[1734238722609,2.2702,220.3,220.24,2.2708]
[1734238724211,2.2702,220.3,220.24,7.81544323]
[1734238731014,2.27,220.31,220.24,7.81544323]
[1734238732517,2.27,220.31,220.25,2.2706]
[1734238733015,2.27,220.31,220.26,2.2706]
[1734238733516,3.18,220.32,220.24,5.54464323]
[1734238734616,2.2703,220.29,220.24,5.54464323]
[1734238735424,2.2701,220.31,220.24,7.81534323]
[1734238735914,3.18,220.32,220.24,7.81534323]
[1734238736720,2.2702,220.3,220.24,7.81534323]
[1734238738113,2.2702,220.3,220.25,2.2707]
[1734238743112,2.96,220.29,220.25,2.2707]
[1734238745919,2.96,220.29,220.26,2.54726542]
[1734238746124,2.96,220.29,220.26,2.2706]
[1734238746624,2.96,220.32,220.25,7.6667569]
[1734238746821,2.96,220.32,220.26,2.54731858]
[1734238747122,10.6267569,220.32,220.27,2.54731858]
[1734238747322,10.6267569,220.32,220.25,7.6667569]
[1734238747718,10.6267569,220.32,220.26,2.54756969]
[1734238747917,10.6267569,220.32,220.25,7.6667569]
[1734238748118,10.6267569,220.32,220.26,2.5477317]
[1734238748322,10.6267569,220.32,220.27,2.5477317]
[1734238748520,10.6267569,220.32,220.25,7.6667569]
[1734238748723,10.6267569,220.32,220.28,2.2703]
[1734238748924,10.6267569,220.32,220.25,7.6667569]
[1734238749116,10.6267569,220.32,220.26,2.5478088]
[1734238749421,10.6267569,220.32,220.27,2.5478088]
[1734238749617,10.6267569,220.32,220.28,2.5478088]
[1734238749813,10.6267569,220.32,220.25,7.6667569]
[1734238750021,10.6267569,220.32,220.26,2.54841293]
[1734238750224,10.6267569,220.32,220.27,2.54841293]
[1734238750421,10.6267569,220.32,220.28,2.54841293]
[1734238750622,10.6267569,220.32,220.25,7.6667569]
[1734238750818,10.6267569,220.32,220.27,2.2704]
[1734238751023,10.6267569,220.32,220.28,2.54908291]
[1734238751322,10.6267569,220.32,220.29,2.54975366]
[1734238751525,10.6267569,220.32,220.25,7.6667569]
[1734238751526,2.96,220.32,220.25,7.6667569]
[1734238751720,2.96,220.32,220.26,2.54966649]
[1734238751922,2.96,220.32,220.27,2.54966649]
[1734238752123,2.96,220.32,220.28,2.54966649]
[1734238752324,2.96,220.32,220.29,2.54966649]
[1734238752526,2.89,220.37,220.25,7.6667569]
[1734238752722,7.6667569,220.34,220.26,2.54950801]
[1734238752928,7.6667569,220.34,220.27,2.54950801]
[1734238753131,7.6667569,220.34,220.28,2.54950801]
[1734238753329,7.6667569,220.34,220.29,2.54950801]
[1734238753532,7.6667569,220.34,220.25,7.6667569]
[1734238753830,7.6667569,220.34,220.29,2.2702]
[1734238755032,2.96,220.35,220.3,2.2701]
[1734238755331,2.96,220.35,220.29,7.6667569]
[1734238755525,2.96,220.35,220.3,2.54979904]
[1734238755729,2.96,220.35,220.29,7.6667569]
[1734238755931,2.96,220.35,220.3,2.54976799]
[1734238756127,2.96,220.35,220.29,7.6667569]
[1734238756327,2.96,220.35,220.32,2.2699]
[1734238757229,7.6667569,220.37,220.32,2.2699]
[1734238759233,7.6667569,220.37,220.33,2.2698]
[1734238759929,2.76,220.37,220.31,7.6667569]
[1734238760129,2.76,220.37,220.33,7.6667569]
[1734238760331,2.76,220.37,220.34,2.5465879]
[1734238760531,2.76,220.37,220.33,7.6667569]
[1734238761635,2.76,220.37,220.35,2.2696]
[1734238761928,2.76,220.37,220.33,7.6667569]
[1734238761929,7.6667569,220.4,220.33,7.6667569]
[1734238762131,10.4267569,220.4,220.33,7.6667569]
[1734238763734,10.4267569,220.4,220.36,2.2695]
[1734238764136,7.6667569,220.38,220.3,2.91]
[1734238764337,7.6667569,220.35,220.3,2.91]
[1734238765431,2.2696,220.36,220.3,2.2701]
[1734238765636,2.2696,220.36,220.24,11.35104323]
[1734238765637,7.6667569,220.33,220.26,7.6667569]
[1734238765835,2.76,220.34,220.27,2.54461581]
[1734238766138,5.8653,220.39,220.28,2.54461581]
[1734238766139,7.6667569,220.32,220.28,2.54461581]
[1734238766334,7.6667569,220.32,220.26,7.6667569]
[1734238766535,7.6667569,220.32,220.27,2.54467665]
[1734238766729,7.6667569,220.32,220.28,4.81497665]
[1734238766940,7.6667569,220.32,220.28,2.2703]
[1734238767240,2.76,220.33,220.29,2.54445671]
[1734238767438,2.76,220.33,220.26,7.6667569]
[1734238767638,2.76,220.33,220.27,2.54434617]
[1734238767937,2.76,220.33,220.26,7.6667569]
[1734238767938,2.76,220.33,220.28,2.54434617]
[1734238768139,2.76,220.33,220.29,2.54434617]
[1734238768439,2.76,220.33,220.26,7.6667569]
[1734238768637,2.76,220.33,220.3,2.2701]
[1734238771641,2.76,220.33,220.28,7.6667569]
[1734238771642,2.76,220.33,220.32,2.2699]
[1734238772940,7.6667569,220.36,220.3,7.6667569]
[1734238772941,5.8653,220.39,220.3,7.6667569]
[1734238773141,2.76,220.38,220.32,7.6667569]
[1734238775742,2.76,220.38,220.34,2.2696]
[1734238776043,2.76,220.38,220.32,7.6667569]
[1734238776238,2.76,220.38,220.36,2.2695]
[1734238782348,5.0291,220.41,220.36,2.2695]
[1734238782850,5.1493,220.45,220.36,7.6667569]
[1734238783048,2.76,220.44,220.38,7.6667569]
[1734238783445,2.2685,220.47,220.38,7.6667569]
[1734238783640,2.76,220.46,220.38,7.6667569]
[1734238784544,9.9352569,220.47,220.4,7.6667569]
[1734238784747,12.6952569,220.47,220.4,7.6667569]
[1734238784941,9.9352569,220.47,220.4,7.6667569]
[1734238785146,12.6952569,220.47,220.4,7.6667569]
[1734238785748,12.6952569,220.47,220.41,2.269]
[1734238786448,12.6952569,220.47,220.42,2.2689]
[1734238786846,5.0285,220.47,220.42,9.9356569]
[1734238787044,12.6952569,220.47,220.41,2.269]
[1734238787249,9.9353569,220.45,220.35,5.8312]
[1734238787445,9.9353569,220.45,220.38,7.6667569]
[1734238787845,10.4267569,220.47,220.4,7.6667569]
[1734238789359,2.76,220.47,220.4,7.6667569]
[1734238789550,10.4267569,220.47,220.4,7.6667569]
[1734238789750,2.2685,220.46,220.41,2.269]
[1734238791455,9.9352569,220.46,220.41,2.269]
[1734238794851,2.2685,220.46,220.41,2.269]
[1734238798150,2.2687,220.45,220.4,2.2691]
[1734238800058,2.2687,220.44,220.38,9.9359569]
[1734238800357,2.2687,220.44,220.31,5.41377291]
[1734238800358,7.6667569,220.42,220.31,5.41377291]
[1734238800657,7.6667569,220.42,220.34,7.6667569]
[1734238800658,12.5157569,220.42,220.34,7.6667569]
[1734238801054,12.5157569,220.42,220.31,5.41377291]
[1734238801055,2.58,220.42,220.38,7.6667569]
[1734238801455,2.58,220.42,220.4,2.2691]
[1734238802052,2.58,220.42,220.41,2.269]
[1734238802758,2.58,220.47,220.42,2.2688]
[1734238803065,3.0864,220.52,220.35,2.58]
[1734238803066,7.6667569,220.45,220.36,3.0363]
[1734238803362,7.6667569,220.45,220.38,7.6667569]
[1734238803559,2.2688,220.43,220.36,12.9724569]
[1734238803758,4.8488,220.43,220.36,12.9724569]
[1734238804155,4.8488,220.43,220.37,2.2694]
[1734238804652,4.8488,220.43,220.36,7.6667569]
[1734238804653,2.58,220.43,220.36,7.6667569]
[1734238804854,2.2689,220.42,220.36,2.2695]
[1734238806657,2.2691,220.4,220.34,2.2697]
[1734238806858,2.2691,220.4,220.31,5.41377291]
[1734238806859,7.6667569,220.41,220.33,7.6667569]
[1734238808565,7.6667569,220.41,220.33,9.9365569]
[1734238808566,2.2692,220.39,220.33,9.9365569]
[1734238808761,2.58,220.38,220.33,9.9365569]
[1734238810465,2.58,220.38,220.29,2.7889]
[1734238810665,7.6667569,220.35,220.3,2.54596162]
[1734238810866,7.6667569,220.35,220.28,7.6667569]
[1734238811064,2.2698,220.34,220.29,2.5463932]
[1734238811261,2.58,220.33,220.28,7.6667569]
[1734238811464,2.58,220.33,220.27,2.2704]
[1734238811668,2.58,220.33,220.27,9.9371569]
[1734238811669,4.8498,220.33,220.27,9.9371569]
[1734238811864,4.8498,220.33,220.28,2.54636259]
[1734238812167,4.8498,220.33,220.27,9.9371569]
[1734238812662,2.58,220.33,220.29,9.9369569]
[1734238812867,2.58,220.33,220.29,2.2702]
[1734238813063,2.58,220.33,220.28,13.20801194]
[1734238813259,2.838,220.39,220.32,7.6667569]
[1734238813467,304.11977533,220.54,220.36,7.6667569]
[1734238813468,14.17290525,220.5,220.36,7.6667569]
[1734238813667,7.6667569,220.44,220.36,7.6667569]
[1734238813865,4.8488,220.43,220.36,9.9362569]
[1734238814062,4.8488,220.43,220.36,7.6667569]
[1734238814768,2.2689,220.42,220.36,7.6667569]
[1734238815660,2.2689,220.42,220.36,9.9362569]
[1734238815859,2.2689,220.42,220.36,2.2695]
[1734238816060,9.9356569,220.42,220.36,2.2695]
[1734238817170,2.2689,220.42,220.36,2.2695]
[1734238817371,10.2467569,220.43,220.37,2.2694]
[1734238817966,9.9355569,220.43,220.37,2.2694]
[1734238818170,2.58,220.42,220.37,2.2694]
[1734238818368,2.58,220.45,220.41,7.6667569]
[1734238818673,2.58,220.46,220.41,7.6667569]
[1734238819574,2.58,220.47,220.42,2.2689]
[1734238821872,2.58,220.47,220.44,2.2687]
[1734238822073,7.6667569,220.51,220.43,7.6667569]
[1734238822274,7.6667569,220.51,220.45,7.6667569]
[1734238822481,2.46,220.5,220.45,7.6667569]
[1734238822878,2.46,220.5,220.46,2.2685]
[1734238823479,2.46,220.5,220.45,7.6667569]
[1734238824076,2.46,220.5,220.45,9.9353569]
[1734238827784,9.9346569,220.52,220.45,7.6667569]
[1734238827988,2.46,220.51,220.46,2.2685]
[1734238828988,2.8778,220.57,220.49,7.6667569]
[1734238829289,2.46,220.56,220.49,7.6667569]
[1734238830587,2.46,220.56,220.51,2.268]
[1734238832386,10.5445569,220.57,220.51,2.268]
[1734238832587,10.1267569,220.57,220.52,2.2679]
[1734238835892,7.6667569,220.57,220.52,2.2679]
[1734238838884,7.6667569,220.55,220.52,2.2679]
[1734238839893,7.6667569,220.55,220.5,2.268]
[1734238841295,7.6667569,220.55,220.49,7.6667569]
[1734238841496,7.6667569,220.55,220.51,2.268]
[1734238842795,2.46,220.58,220.51,2.268]
[1734238842999,4.7274,220.58,220.52,2.2678]
[1734238843197,189.34349339,220.93,220.57,7.6667569]
[1734238843397,252.45799119,221.02,220.51,65.52]
[1734238843398,22.53460472,220.92,220.8,7.6667569]
[1734238843592,10.1267569,220.91,220.8,7.6667569]
[1734238843793,7.6667569,220.91,220.81,7.6667569]
[1734238844000,2.46,220.9,220.81,7.6667569]
[1734238844192,9.9304569,220.93,220.83,7.6667569]
[1734238844394,13.64,221.05,220.86,7.6667569]
[1734238844395,2.46,220.92,220.86,7.6667569]
[1734238844693,2.46,220.91,220.86,7.6667569]
[1734238844900,2.46,220.91,220.87,5.66478126]
[1734238845096,2.46,220.91,220.88,13.33153011]
[1734238845297,2.46,220.9,220.89,5.66477321]
[1734238845902,2.46,220.9,220.82,11.91026099]
[1734238846102,2.46,220.9,220.83,26.05929029]
[1734238846400,2.46,220.9,220.84,26.05929029]
[1734238846604,2.46,220.9,220.82,11.91026099]
[1734238846605,2.46,220.9,220.85,5.66506311]